[Event "Live Chess"]
[Site "Chess.com"]
[Date "2010.12.13"]
[Round "-"]
[White "CryingWolf"]
[Black "hipposcottimus"]
[Result "1-0"]
[CurrentPosition "5r1k/p1p1b1Q1/1p5P/4p3/2p1P3/3P2PP/PPP5/R4RK1 b - -"]
[Timezone "UTC"]
[ECO "C65"]
[ECOUrl "https://www.chess.com/openings/Ruy-Lopez-Opening-Berlin-Defense-4.Bxc6-dxc6"]
[UTCDate "2010.12.13"]
[UTCTime "07:52:08"]
[WhiteElo "1502"]
[BlackElo "1629"]
[TimeControl "60"]
[Termination "CryingWolf won by checkmate"]
[StartTime "07:52:08"]
[EndDate "2010.12.13"]
[EndTime "07:53:46"]
[Link "https://www.chess.com/game/live/76804965"]

1. e4 {[%clk 0:01:00]} 1... e5 {[%clk 0:01:00]} 2. Nf3 {[%clk 0:00:59.4]} 2... Nc6 {[%clk 0:00:59.7]} 3. Bb5 {[%clk 0:00:58.5]} 3... Nf6 {[%clk 0:00:59.2]} 4. Bxc6 {[%clk 0:00:57.8]} 4... dxc6 {[%clk 0:00:58.2]} 5. O-O {[%clk 0:00:57]} 5... Bg4 {[%clk 0:00:55.9]} 6. h3 {[%clk 0:00:53.8]} 6... Bh5 {[%clk 0:00:55.1]} 7. Nc3 {[%clk 0:00:51.1]} 7... Bd6 {[%clk 0:00:52.6]} 8. Qe2 {[%clk 0:00:49.1]} 8... c5 {[%clk 0:00:52.2]} 9. Qe3 {[%clk 0:00:48.1]} 9... O-O {[%clk 0:00:48.8]} 10. d3 {[%clk 0:00:47.3]} 10... b6 {[%clk 0:00:44.4]} 11. Ng5 {[%clk 0:00:46.4]} 11... c4 {[%clk 0:00:42.4]} 12. Qg3 {[%clk 0:00:44.6]} 12... Bg6 {[%clk 0:00:34.1]} 13. Nf3 {[%clk 0:00:40.7]} 13... Nh5 {[%clk 0:00:33.7]} 14. Qg4 {[%clk 0:00:37.6]} 14... Re8 {[%clk 0:00:32.3]} 15. Nh4 {[%clk 0:00:36.5]} 15... Re7 {[%clk 0:00:27.4]} 16. Bg5 {[%clk 0:00:34.5]} 16... f6 {[%clk 0:00:25.2]} 17. Nxg6 {[%clk 0:00:33.4]} 17... fxg5 {[%clk 0:00:24]} 18. Nxe7+ {[%clk 0:00:31.3]} 18... Qxe7 {[%clk 0:00:22.5]} 19. Qxh5 {[%clk 0:00:30.5]} 19... Qf6 {[%clk 0:00:22]} 20. Qg4 {[%clk 0:00:28.9]} 20... Rf8 {[%clk 0:00:21.6]} 21. Nd5 {[%clk 0:00:27.7]} 21... Be7 {[%clk 0:00:21.3]} 22. Nxf6+ {[%clk 0:00:26.7]} 22... Bxf6 {[%clk 0:00:21.1]} 23. f3 {[%clk 0:00:25.5]} 23... Be7 {[%clk 0:00:20.8]} 24. g3 {[%clk 0:00:24.6]} 24... Bd6 {[%clk 0:00:20.5]} 25. f4 {[%clk 0:00:23.9]} 25... Be7 {[%clk 0:00:20.3]} 26. fxg5 {[%clk 0:00:22.2]} 26... h5 {[%clk 0:00:20]} 27. gxh6 {[%clk 0:00:20.3]} 27... g6 {[%clk 0:00:19.3]} 28. Qxg6+ {[%clk 0:00:19.2]} 28... Kh8 {[%clk 0:00:18.7]} 29. Qg7# {[%clk 0:00:18.4]} 1-0

[Event "Live Chess"]
[Site "Chess.com"]
[Date "2010.12.13"]
[Round "-"]
[White "hipposcottimus"]
[Black "CryingWolf"]
[Result "1-0"]
[CurrentPosition "6k1/2p2p1p/p1p2p2/3p1q2/7P/5b1R/PP4PK/8 b - -"]
[Timezone "UTC"]
[ECO "C50"]
[ECOUrl "https://www.chess.com/openings/Italian-Game"]
[UTCDate "2010.12.13"]
[UTCTime "07:49:50"]
[WhiteElo "1639"]
[BlackElo "1490"]
[TimeControl "60"]
[Termination "hipposcottimus won on time"]
[StartTime "07:49:50"]
[EndDate "2010.12.13"]
[EndTime "07:51:49"]
[Link "https://www.chess.com/game/live/76804499"]

1. e4 {[%clk 0:01:00]} 1... e5 {[%clk 0:01:00]} 2. Nf3 {[%clk 0:00:58]} 2... Nc6 {[%clk 0:00:59.5]} 3. Bc4 {[%clk 0:00:57.6]} 3... a6 {[%clk 0:00:59.1]} 4. d4 {[%clk 0:00:55.8]} 4... exd4 {[%clk 0:00:57.4]} 5. Nxd4 {[%clk 0:00:55.5]} 5... Bc5 {[%clk 0:00:54.8]} 6. Nxc6 {[%clk 0:00:53.9]} 6... bxc6 {[%clk 0:00:54.2]} 7. Qd2 {[%clk 0:00:53.7]} 7... Nf6 {[%clk 0:00:50.1]} 8. Bb3 {[%clk 0:00:52.6]} 8... O-O {[%clk 0:00:47.3]} 9. Qe2 {[%clk 0:00:52.2]} 9... Nxe4 {[%clk 0:00:44.9]} 10. f3 {[%clk 0:00:51.7]} 10... Nf6 {[%clk 0:00:40.2]} 11. Nc3 {[%clk 0:00:46.5]} 11... Re8 {[%clk 0:00:39.3]} 12. Ne4 {[%clk 0:00:45.8]} 12... d5 {[%clk 0:00:34.1]} 13. Nxf6+ {[%clk 0:00:43.9]} 13... gxf6 {[%clk 0:00:30.2]} 14. Be3 {[%clk 0:00:43.5]} 14... Rxe3 {[%clk 0:00:27.9]} 15. Qxe3 {[%clk 0:00:40.7]} 15... Bxe3 {[%clk 0:00:27.3]} 16. Ke2 {[%clk 0:00:40.4]} 16... Qe7 {[%clk 0:00:26.2]} 17. Rae1 {[%clk 0:00:39.1]} 17... Bc5+ {[%clk 0:00:22]} 18. Kd2 {[%clk 0:00:38.3]} 18... Bb4+ {[%clk 0:00:20.8]} 19. c3 {[%clk 0:00:35.7]} 19... Qd6 {[%clk 0:00:17.7]} 20. cxb4 {[%clk 0:00:34.6]} 20... Qxb4+ {[%clk 0:00:16.4]} 21. Kc2 {[%clk 0:00:34.4]} 21... Bf5+ {[%clk 0:00:15.7]} 22. Kc1 {[%clk 0:00:32.9]} 22... Rb8 {[%clk 0:00:14.9]} 23. Bc2 {[%clk 0:00:31.9]} 23... Qc5 {[%clk 0:00:13.9]} 24. Re2 {[%clk 0:00:26.4]} 24... Rb4 {[%clk 0:00:12.8]} 25. Kd2 {[%clk 0:00:24.2]} 25... Rd4+ {[%clk 0:00:11.7]} 26. Ke1 {[%clk 0:00:23.4]} 26... Bxc2 {[%clk 0:00:09.8]} 27. Kf2 {[%clk 0:00:22.9]} 27... Rd2+ {[%clk 0:00:07.8]} 28. Ke1 {[%clk 0:00:21.3]} 28... Rxe2+ {[%clk 0:00:06.9]} 29. Kxe2 {[%clk 0:00:20.4]} 29... Qc4+ {[%clk 0:00:05.2]} 30. Kf2 {[%clk 0:00:19.2]} 30... Qd3 {[%clk 0:00:04]} 31. Kg3 {[%clk 0:00:18.9]} 31... Qf5 {[%clk 0:00:03.2]} 32. h4 {[%clk 0:00:18.4]} 32... Be4 {[%clk 0:00:02]} 33. Rh3 {[%clk 0:00:17.5]} 33... Bxf3 {[%clk 0:00:00.6]} 34. Kh2 {[%clk 0:00:17.3]} 1-0

[Event "Live Chess"]
[Site "Chess.com"]
[Date "2010.12.13"]
[Round "-"]
[White "Blind_Demon"]
[Black "hipposcottimus"]
[Result "0-1"]
[CurrentPosition "1r4k1/5ppp/8/1B6/1Q1P4/4P1PP/5PK1/2q5 w - -"]
[Timezone "UTC"]
[ECO "A20"]
[ECOUrl "https://www.chess.com/openings/English-Opening-Kings-English-Variation-2.g3-Nf6-3.Bg2"]
[UTCDate "2010.12.13"]
[UTCTime "07:47:39"]
[WhiteElo "1491"]
[BlackElo "1634"]
[TimeControl "60"]
[Termination "hipposcottimus won on time"]
[StartTime "07:47:39"]
[EndDate "2010.12.13"]
[EndTime "07:49:31"]
[Link "https://www.chess.com/game/live/76804110"]

1. c4 {[%clk 0:01:00]} 1... e5 {[%clk 0:01:00]} 2. g3 {[%clk 0:01:00]} 2... Nf6 {[%clk 0:00:59.2]} 3. Bg2 {[%clk 0:01:00]} 3... e4 {[%clk 0:00:58.9]} 4. Nc3 {[%clk 0:00:56.8]} 4... d5 {[%clk 0:00:58.6]} 5. cxd5 {[%clk 0:00:55.1]} 5... Bb4 {[%clk 0:00:55.7]} 6. a3 {[%clk 0:00:51.5]} 6... Bxc3 {[%clk 0:00:54.1]} 7. bxc3 {[%clk 0:00:51.5]} 7... Nxd5 {[%clk 0:00:53.1]} 8. Bxe4 {[%clk 0:00:49.6]} 8... Nf6 {[%clk 0:00:52.8]} 9. Bg2 {[%clk 0:00:47.3]} 9... O-O {[%clk 0:00:52.4]} 10. Nf3 {[%clk 0:00:46.8]} 10... Re8 {[%clk 0:00:52.1]} 11. d4 {[%clk 0:00:45.6]} 11... Bg4 {[%clk 0:00:51.8]} 12. e3 {[%clk 0:00:44.1]} 12... Nc6 {[%clk 0:00:47.7]} 13. O-O {[%clk 0:00:42.8]} 13... Na5 {[%clk 0:00:47.2]} 14. Bd2 {[%clk 0:00:39.1]} 14... Nc4 {[%clk 0:00:46.1]} 15. Qc1 {[%clk 0:00:36]} 15... Ne4 {[%clk 0:00:42.1]} 16. h3 {[%clk 0:00:33]} 16... Bxf3 {[%clk 0:00:40.1]} 17. Bxf3 {[%clk 0:00:31.9]} 17... Nexd2 {[%clk 0:00:39.5]} 18. Rd1 {[%clk 0:00:27.2]} 18... Rb8 {[%clk 0:00:39.2]} 19. Rxd2 {[%clk 0:00:25.2]} 19... Nxd2 {[%clk 0:00:37.8]} 20. Qxd2 {[%clk 0:00:25.2]} 20... c6 {[%clk 0:00:37.3]} 21. c4 {[%clk 0:00:24.3]} 21... Qc7 {[%clk 0:00:34]} 22. Bg2 {[%clk 0:00:20.5]} 22... b5 {[%clk 0:00:33.6]} 23. Rb1 {[%clk 0:00:18.1]} 23... a6 {[%clk 0:00:32.9]} 24. cxb5 {[%clk 0:00:16.5]} 24... axb5 {[%clk 0:00:32.3]} 25. a4 {[%clk 0:00:14.7]} 25... Re6 {[%clk 0:00:29.7]} 26. axb5 {[%clk 0:00:13.2]} 26... Rxb5 {[%clk 0:00:28]} 27. Rxb5 {[%clk 0:00:09.8]} 27... cxb5 {[%clk 0:00:27.7]} 28. Qb4 {[%clk 0:00:08]} 28... Qb6 {[%clk 0:00:27.1]} 29. Bf3 {[%clk 0:00:06.1]} 29... Re8 {[%clk 0:00:25.8]} 30. Be2 {[%clk 0:00:05.4]} 30... Qc6 {[%clk 0:00:23.3]} 31. Bxb5 {[%clk 0:00:03.8]} 31... Qc1+ {[%clk 0:00:23]} 32. Kg2 {[%clk 0:00:02.1]} 32... Rb8 {[%clk 0:00:22.5]} 0-1

[Event "Live Chess"]
[Site "Chess.com"]
[Date "2010.12.13"]
[Round "-"]
[White "hipposcottimus"]
[Black "jigaar"]
[Result "0-1"]
[CurrentPosition "5rk1/4p2p/q1p1p1p1/2Pp4/8/pP4B1/P1P3PP/5RK1 b - -"]
[Timezone "UTC"]
[ECO "A06"]
[ECOUrl "https://www.chess.com/openings/Reti-Opening-Tennison-Gambit"]
[UTCDate "2010.12.13"]
[UTCTime "07:45:26"]
[WhiteElo "1629"]
[BlackElo "1948"]
[TimeControl "60"]
[Termination "jigaar won by resignation"]
[StartTime "07:45:26"]
[EndDate "2010.12.13"]
[EndTime "07:47:02"]
[Link "https://www.chess.com/game/live/76803666"]

1. e4 {[%clk 0:01:00]} 1... d5 {[%clk 0:01:00]} 2. Nf3 {[%clk 0:00:59.7]} 2... Nf6 {[%clk 0:00:59.5]} 3. e5 {[%clk 0:00:58]} 3... Ne4 {[%clk 0:00:58.7]} 4. d4 {[%clk 0:00:57.5]} 4... Ng5 {[%clk 0:00:58.1]} 5. Nc3 {[%clk 0:00:55.6]} 5... Ne6 {[%clk 0:00:57.5]} 6. Bb5+ {[%clk 0:00:53.7]} 6... c6 {[%clk 0:00:55.7]} 7. Be2 {[%clk 0:00:53.4]} 7... b5 {[%clk 0:00:55.3]} 8. O-O {[%clk 0:00:53]} 8... b4 {[%clk 0:00:55]} 9. Na4 {[%clk 0:00:51.6]} 9... a5 {[%clk 0:00:54.3]} 10. Nc5 {[%clk 0:00:51.3]} 10... Ba6 {[%clk 0:00:53]} 11. Nxe6 {[%clk 0:00:50.2]} 11... fxe6 {[%clk 0:00:52.6]} 12. Bxa6 {[%clk 0:00:49.3]} 12... Nxa6 {[%clk 0:00:52.3]} 13. Re1 {[%clk 0:00:48.9]} 13... g6 {[%clk 0:00:51.2]} 14. Be3 {[%clk 0:00:47.9]} 14... Bg7 {[%clk 0:00:50.6]} 15. Nd2 {[%clk 0:00:47.7]} 15... O-O {[%clk 0:00:50.2]} 16. f4 {[%clk 0:00:47.4]} 16... Rf7 {[%clk 0:00:48.7]} 17. Rf1 {[%clk 0:00:47.1]} 17... Qd7 {[%clk 0:00:48.1]} 18. Bf2 {[%clk 0:00:46.6]} 18... Raf8 {[%clk 0:00:47.6]} 19. Bg3 {[%clk 0:00:46.3]} 19... Qc7 {[%clk 0:00:46.8]} 20. Nb3 {[%clk 0:00:42.1]} 20... a4 {[%clk 0:00:45.1]} 21. Nc5 {[%clk 0:00:41.1]} 21... Nxc5 {[%clk 0:00:43.6]} 22. dxc5 {[%clk 0:00:40.8]} 22... Qa7 {[%clk 0:00:43.1]} 23. b3 {[%clk 0:00:40.3]} 23... a3 {[%clk 0:00:39.9]} 24. Qd4 {[%clk 0:00:35.6]} 24... Qa6 {[%clk 0:00:38.8]} 25. Qxb4 {[%clk 0:00:33.6]} 25... Bxe5 {[%clk 0:00:35.4]} 26. Qc3 {[%clk 0:00:17.3]} 26... Bxc3 {[%clk 0:00:34.2]} 27. f5 {[%clk 0:00:14.8]} 27... Bxa1 {[%clk 0:00:30.7]} 28. Rxa1 {[%clk 0:00:12.5]} 28... Rxf5 {[%clk 0:00:29.8]} 29. Re1 {[%clk 0:00:12]} 29... Rf1+ {[%clk 0:00:28]} 30. Rxf1 {[%clk 0:00:11.6]} 0-1

[Event "Live Chess"]
[Site "Chess.com"]
[Date "2010.12.13"]
[Round "-"]
[White "hipposcottimus"]
[Black "Pablohere"]
[Result "1-0"]
[CurrentPosition "r1bk4/ppp1Q3/3p4/2b1P1B1/3p4/8/PPP2PPP/RN2K2R b KQ -"]
[Timezone "UTC"]
[ECO "C45"]
[ECOUrl "https://www.chess.com/openings/Scotch-Game-Scotch-Gambit-Dubois-Reti-Advance-Kingside-Variation"]
[UTCDate "2010.12.13"]
[UTCTime "07:44:08"]
[WhiteElo "1631"]
[BlackElo "1266"]
[TimeControl "60"]
[Termination "hipposcottimus won by checkmate"]
[StartTime "07:44:08"]
[EndDate "2010.12.13"]
[EndTime "07:45:09"]
[Link "https://www.chess.com/game/live/76803462"]

1. e4 {[%clk 0:01:00]} 1... e5 {[%clk 0:01:00]} 2. Nf3 {[%clk 0:00:58.3]} 2... Nc6 {[%clk 0:00:58.4]} 3. Bc4 {[%clk 0:00:58]} 3... Nf6 {[%clk 0:00:57.7]} 4. d4 {[%clk 0:00:57.7]} 4... exd4 {[%clk 0:00:56.1]} 5. e5 {[%clk 0:00:57.2]} 5... Ng4 {[%clk 0:00:54.9]} 6. Bf4 {[%clk 0:00:54.6]} 6... Bc5 {[%clk 0:00:54]} 7. Bxf7+ {[%clk 0:00:47.1]} 7... Kxf7 {[%clk 0:00:51.8]} 8. Ng5+ {[%clk 0:00:46.3]} 8... Kg6 {[%clk 0:00:48.8]} 9. Qxg4 {[%clk 0:00:45.9]} 9... d6 {[%clk 0:00:45.3]} 10. Ne6+ {[%clk 0:00:44.6]} 10... Kf7 {[%clk 0:00:43.7]} 11. Nxd8+ {[%clk 0:00:44.1]} 11... Ke7 {[%clk 0:00:42.5]} 12. Qxg7+ {[%clk 0:00:40.4]} 12... Kxd8 {[%clk 0:00:40.1]} 13. Qxh8+ {[%clk 0:00:39.6]} 13... Kd7 {[%clk 0:00:38.7]} 14. Qxh7+ {[%clk 0:00:39.3]} 14... Kd8 {[%clk 0:00:37.6]} 15. Qg8+ {[%clk 0:00:39]} 15... Kd7 {[%clk 0:00:37]} 16. Qf7+ {[%clk 0:00:38.4]} 16... Kd8 {[%clk 0:00:36.2]} 17. Bg5+ {[%clk 0:00:37.8]} 17... Ne7 {[%clk 0:00:33.5]} 18. Qxe7# {[%clk 0:00:34.5]} 1-0

[Event "Live Chess"]
[Site "Chess.com"]
[Date "2010.12.13"]
[Round "-"]
[White "travisj2"]
[Black "hipposcottimus"]
[Result "1-0"]
[CurrentPosition "6k1/p5pp/5R2/8/8/1P2P1P1/P6P/6K1 b - -"]
[Timezone "UTC"]
[ECO "A00"]
[ECOUrl "https://www.chess.com/openings/Kings-Fianchetto-Opening-1...e5-2.Bg2-d5"]
[UTCDate "2010.12.13"]
[UTCTime "05:58:51"]
[WhiteElo "1547"]
[BlackElo "1629"]
[TimeControl "60"]
[Termination "travisj2 won on time"]
[StartTime "05:58:51"]
[EndDate "2010.12.13"]
[EndTime "06:01:01"]
[Link "https://www.chess.com/game/live/76783984"]

1. g3 {[%clk 0:01:00]} 1... e5 {[%clk 0:01:00]} 2. Bg2 {[%clk 0:01:00]} 2... d5 {[%clk 0:00:59.7]} 3. e3 {[%clk 0:01:00]} 3... e4 {[%clk 0:00:59.5]} 4. f4 {[%clk 0:01:00]} 4... f5 {[%clk 0:00:59.3]} 5. d3 {[%clk 0:01:00]} 5... Nf6 {[%clk 0:00:59]} 6. dxe4 {[%clk 0:00:59.4]} 6... fxe4 {[%clk 0:00:58.8]} 7. b3 {[%clk 0:00:57.7]} 7... Bg4 {[%clk 0:00:58.4]} 8. Ne2 {[%clk 0:00:55.9]} 8... Nc6 {[%clk 0:00:54.6]} 9. Qd2 {[%clk 0:00:55.2]} 9... Be7 {[%clk 0:00:54.3]} 10. O-O {[%clk 0:00:53.8]} 10... O-O {[%clk 0:00:53.1]} 11. c3 {[%clk 0:00:53.1]} 11... Qd7 {[%clk 0:00:52]} 12. Nd4 {[%clk 0:00:52.2]} 12... Bh3 {[%clk 0:00:51.2]} 13. Bxh3 {[%clk 0:00:50.7]} 13... Qxh3 {[%clk 0:00:49.1]} 14. Nxc6 {[%clk 0:00:48.9]} 14... bxc6 {[%clk 0:00:48.8]} 15. c4 {[%clk 0:00:48.2]} 15... Ng4 {[%clk 0:00:47.6]} 16. cxd5 {[%clk 0:00:45.7]} 16... cxd5 {[%clk 0:00:45.9]} 17. Rf2 {[%clk 0:00:44.7]} 17... c6 {[%clk 0:00:43.4]} 18. Re2 {[%clk 0:00:43.6]} 18... Bc5 {[%clk 0:00:39.1]} 19. Bb2 {[%clk 0:00:40.4]} 19... Rab8 {[%clk 0:00:34.3]} 20. Bd4 {[%clk 0:00:38.9]} 20... Bb4 {[%clk 0:00:33]} 21. Qc2 {[%clk 0:00:36.4]} 21... Bc5 {[%clk 0:00:30.9]} 22. Bxc5 {[%clk 0:00:34.4]} 22... Rf7 {[%clk 0:00:30.7]} 23. Bd6 {[%clk 0:00:33]} 23... Re8 {[%clk 0:00:28.4]} 24. Qxc6 {[%clk 0:00:31.5]} 24... Rf6 {[%clk 0:00:21.7]} 25. Qxd5+ {[%clk 0:00:29.8]} 25... Rfe6 {[%clk 0:00:20.1]} 26. Nc3 {[%clk 0:00:26.7]} 26... Kf7 {[%clk 0:00:16.5]} 27. Nxe4 {[%clk 0:00:25.5]} 27... Kg6 {[%clk 0:00:11.7]} 28. Qg5+ {[%clk 0:00:23.1]} 28... Kf7 {[%clk 0:00:10.3]} 29. Qf5+ {[%clk 0:00:21.7]} 29... Kg8 {[%clk 0:00:08.6]} 30. Rd1 {[%clk 0:00:18.3]} 30... Rxe4 {[%clk 0:00:07.6]} 31. Be5 {[%clk 0:00:16.8]} 31... R4xe5 {[%clk 0:00:06.5]} 32. fxe5 {[%clk 0:00:16.1]} 32... Nxe5 {[%clk 0:00:04.8]} 33. Rf1 {[%clk 0:00:14.9]} 33... Qxf5 {[%clk 0:00:03.2]} 34. Rxf5 {[%clk 0:00:13.4]} 34... Ng4 {[%clk 0:00:02.9]} 35. Ref2 {[%clk 0:00:12.6]} 35... Nf6 {[%clk 0:00:02.3]} 36. R2f3 {[%clk 0:00:11.2]} 36... Rf8 {[%clk 0:00:01.7]} 37. Rxf6 {[%clk 0:00:10.4]} 37... Rxf6 {[%clk 0:00:00.3]} 38. Rxf6 {[%clk 0:00:09.2]} 1-0

[Event "Live Chess"]
[Site "Chess.com"]
[Date "2010.12.13"]
[Round "-"]
[White "hipposcottimus"]
[Black "travisj2"]
[Result "1-0"]
[CurrentPosition "5b2/pp6/2p2q2/5Q1k/6p1/8/PP4P1/5RK1 b - -"]
[Timezone "UTC"]
[ECO "B07"]
[ECOUrl "https://www.chess.com/openings/Pirc-Defense-2.d4-c6-3.c4"]
[UTCDate "2010.12.13"]
[UTCTime "05:56:31"]
[WhiteElo "1638"]
[BlackElo "1536"]
[TimeControl "60"]
[Termination "hipposcottimus won on time"]
[StartTime "05:56:31"]
[EndDate "2010.12.13"]
[EndTime "05:58:31"]
[Link "https://www.chess.com/game/live/76783545"]

1. e4 {[%clk 0:01:00]} 1... d6 {[%clk 0:01:00]} 2. d4 {[%clk 0:00:57.9]} 2... c6 {[%clk 0:01:00]} 3. c4 {[%clk 0:00:55.8]} 3... e6 {[%clk 0:01:00]} 4. Nf3 {[%clk 0:00:54.7]} 4... f6 {[%clk 0:01:00]} 5. Bd3 {[%clk 0:00:54.4]} 5... g6 {[%clk 0:00:59.5]} 6. e5 {[%clk 0:00:54.2]} 6... d5 {[%clk 0:00:58.7]} 7. exf6 {[%clk 0:00:53.1]} 7... Qxf6 {[%clk 0:00:56.2]} 8. Qe2 {[%clk 0:00:52.8]} 8... dxc4 {[%clk 0:00:54.8]} 9. Be3 {[%clk 0:00:50.5]} 9... cxd3 {[%clk 0:00:53.2]} 10. Qxd3 {[%clk 0:00:48.8]} 10... e5 {[%clk 0:00:51.2]} 11. Nc3 {[%clk 0:00:48.5]} 11... exd4 {[%clk 0:00:50.2]} 12. Bxd4 {[%clk 0:00:47.6]} 12... Qe6+ {[%clk 0:00:49]} 13. Be3 {[%clk 0:00:46]} 13... Nf6 {[%clk 0:00:47.8]} 14. O-O {[%clk 0:00:44.9]} 14... Bd6 {[%clk 0:00:46.9]} 15. Rfe1 {[%clk 0:00:43.8]} 15... O-O {[%clk 0:00:46.1]} 16. Bh6 {[%clk 0:00:42.5]} 16... Qf7 {[%clk 0:00:43.3]} 17. Bxf8 {[%clk 0:00:42]} 17... Bxf8 {[%clk 0:00:42.5]} 18. Nd4 {[%clk 0:00:41.6]} 18... Nbd7 {[%clk 0:00:38.9]} 19. Qh3 {[%clk 0:00:40.3]} 19... h5 {[%clk 0:00:36.3]} 20. Nf3 {[%clk 0:00:39.7]} 20... Nc5 {[%clk 0:00:34.1]} 21. Qg3 {[%clk 0:00:37.6]} 21... Ne6 {[%clk 0:00:30.4]} 22. Ng5 {[%clk 0:00:34.2]} 22... Nxg5 {[%clk 0:00:29.2]} 23. Qxg5 {[%clk 0:00:34]} 23... Bf5 {[%clk 0:00:26.8]} 24. Ne2 {[%clk 0:00:31.7]} 24... Ne4 {[%clk 0:00:23.9]} 25. Qf4 {[%clk 0:00:30.7]} 25... Re8 {[%clk 0:00:22.1]} 26. Ng3 {[%clk 0:00:28.9]} 26... Nxg3 {[%clk 0:00:20.5]} 27. Qxg3 {[%clk 0:00:28.7]} 27... Rxe1+ {[%clk 0:00:19]} 28. Rxe1 {[%clk 0:00:28.5]} 28... Qf6 {[%clk 0:00:17.6]} 29. Qe3 {[%clk 0:00:27.3]} 29... Kg7 {[%clk 0:00:15.3]} 30. Qg3 {[%clk 0:00:24.4]} 30... g5 {[%clk 0:00:13.8]} 31. Rf1 {[%clk 0:00:24.1]} 31... Kg6 {[%clk 0:00:13.1]} 32. h4 {[%clk 0:00:22.2]} 32... g4 {[%clk 0:00:12.3]} 33. f3 {[%clk 0:00:20.9]} 33... Kh6 {[%clk 0:00:11.4]} 34. fxg4 {[%clk 0:00:20.2]} 34... hxg4 {[%clk 0:00:08.9]} 35. Qf4+ {[%clk 0:00:18.2]} 35... Kg6 {[%clk 0:00:06.7]} 36. h5+ {[%clk 0:00:16.8]} 36... Kxh5 {[%clk 0:00:02.2]} 37. Qxf5+ {[%clk 0:00:16.4]} 1-0

[Event "Live Chess"]
[Site "Chess.com"]
[Date "2010.12.13"]
[Round "-"]
[White "travisj2"]
[Black "hipposcottimus"]
[Result "0-1"]
[CurrentPosition "8/ppp1R1pk/3r3p/8/1P6/1KP5/P7/4R3 w - -"]
[Timezone "UTC"]
[ECO "C20"]
[ECOUrl "https://www.chess.com/openings/Kings-Pawn-Opening-Leonardis-Variation"]
[UTCDate "2010.12.13"]
[UTCTime "05:53:57"]
[WhiteElo "1542"]
[BlackElo "1632"]
[TimeControl "60"]
[Termination "hipposcottimus won on time"]
[StartTime "05:53:57"]
[EndDate "2010.12.13"]
[EndTime "05:56:15"]
[Link "https://www.chess.com/game/live/76783041"]

1. e4 {[%clk 0:01:00]} 1... e5 {[%clk 0:01:00]} 2. d3 {[%clk 0:00:59.3]} 2... Nc6 {[%clk 0:00:59.6]} 3. Qf3 {[%clk 0:00:58.6]} 3... Nf6 {[%clk 0:00:59.2]} 4. h3 {[%clk 0:00:57.9]} 4... Nd4 {[%clk 0:00:58.8]} 5. Qd1 {[%clk 0:00:55.9]} 5... d5 {[%clk 0:00:58.3]} 6. c3 {[%clk 0:00:55.3]} 6... Nc6 {[%clk 0:00:54.6]} 7. Bg5 {[%clk 0:00:54.4]} 7... dxe4 {[%clk 0:00:52.8]} 8. Bxf6 {[%clk 0:00:53.1]} 8... Qxf6 {[%clk 0:00:51.6]} 9. dxe4 {[%clk 0:00:51.3]} 9... Bd6 {[%clk 0:00:48.9]} 10. f3 {[%clk 0:00:50.5]} 10... O-O {[%clk 0:00:47.4]} 11. g3 {[%clk 0:00:49.8]} 11... Qe7 {[%clk 0:00:46.8]} 12. Bg2 {[%clk 0:00:49.1]} 12... f5 {[%clk 0:00:46]} 13. exf5 {[%clk 0:00:47.7]} 13... Bxf5 {[%clk 0:00:44.9]} 14. Qe2 {[%clk 0:00:46.1]} 14... Rae8 {[%clk 0:00:40]} 15. Nd2 {[%clk 0:00:43.7]} 15... Bc2 {[%clk 0:00:35.2]} 16. Rc1 {[%clk 0:00:40.6]} 16... Bg6 {[%clk 0:00:31.6]} 17. Rd1 {[%clk 0:00:37]} 17... Bc5 {[%clk 0:00:31.1]} 18. Ne4 {[%clk 0:00:35.6]} 18... Bxe4 {[%clk 0:00:29.2]} 19. Qxe4 {[%clk 0:00:34.6]} 19... Bb6 {[%clk 0:00:24]} 20. Ne2 {[%clk 0:00:33.3]} 20... Nd8 {[%clk 0:00:23.1]} 21. b4 {[%clk 0:00:28.7]} 21... Ne6 {[%clk 0:00:22.7]} 22. Nc1 {[%clk 0:00:26]} 22... Ng5 {[%clk 0:00:20.8]} 23. Qd3 {[%clk 0:00:23.8]} 23... e4 {[%clk 0:00:18.9]} 24. fxe4 {[%clk 0:00:19.3]} 24... Nxe4 {[%clk 0:00:18.6]} 25. Bxe4 {[%clk 0:00:15.3]} 25... Qxe4+ {[%clk 0:00:16.1]} 26. Qxe4 {[%clk 0:00:14.6]} 26... Rxe4+ {[%clk 0:00:15.8]} 27. Ne2 {[%clk 0:00:13.9]} 27... Rf3 {[%clk 0:00:11.9]} 28. Rf1 {[%clk 0:00:11.3]} 28... Rfe3 {[%clk 0:00:10.1]} 29. Rd2 {[%clk 0:00:09.2]} 29... Rxg3 {[%clk 0:00:07.6]} 30. Kd1 {[%clk 0:00:06.7]} 30... Rxh3 {[%clk 0:00:06.3]} 31. Nd4 {[%clk 0:00:05.1]} 31... Bxd4 {[%clk 0:00:04.3]} 32. Rxd4 {[%clk 0:00:04.2]} 32... h6 {[%clk 0:00:03.5]} 33. Rxe4 {[%clk 0:00:03.2]} 33... Kh7 {[%clk 0:00:03.2]} 34. Rfe1 {[%clk 0:00:02.4]} 34... Rd3+ {[%clk 0:00:02.6]} 35. Kc2 {[%clk 0:00:01]} 35... Rd8 {[%clk 0:00:01.9]} 36. Kb3 {[%clk 0:00:00.2]} 36... Rd7 {[%clk 0:00:01.3]} 37. Re7 {[%clk 0:00:00.2]} 37... Rd6 {[%clk 0:00:01]} 0-1